[Event "*** Titled Tuesday Blitz"]
[Site "Chess.com"]
[Date "2021.02.02"]
[Round "1"]
[White "Margency"]
[Black "Sjakkerntobi"]
[Result "1-0"]
[WhiteElo "2623"]
[BlackElo "2325"]
[TimeControl "180+1"]
[EndTime "10:07:13 PST"]
[Termination "Margency won by resignation"]

1. e4 {[%clk 0:03:00.9]} 1... e6 {[%clk 0:02:56.9]} 2. d4 {[%clk 0:03:00.7]}
2... d5 {[%clk 0:02:56.5]} 3. Nc3 {[%clk 0:03:01.3]} 3... Bb4 {[%clk 0:02:54.6]}
4. e5 {[%clk 0:03:01.4]} 4... Ne7 {[%clk 0:02:53]} 5. Bd2 {[%clk 0:03:01]} 5...
b6 {[%clk 0:02:52.6]} 6. Nce2 {[%clk 0:03:00.8]} 6... Bxd2+ {[%clk 0:02:50.3]}
7. Qxd2 {[%clk 0:03:01.7]} 7... Ba6 {[%clk 0:02:50.3]} 8. Nf3 {[%clk 0:03:01.3]}
8... c5 {[%clk 0:02:49.6]} 9. c3 {[%clk 0:03:01.3]} 9... Nbc6 {[%clk 0:02:48.3]}
10. g3 {[%clk 0:03:01.3]} 10... Rc8 {[%clk 0:02:45.8]} 11. Bh3 {[%clk
0:03:01.1]} 11... cxd4 {[%clk 0:02:31.2]} 12. cxd4 {[%clk 0:03:00.5]} 12... Bxe2
{[%clk 0:02:26.2]} 13. Qxe2 {[%clk 0:03:00.2]} 13... Nb4 {[%clk 0:02:26.3]} 14.
O-O {[%clk 0:02:57.3]} 14... Rc2 {[%clk 0:02:25.8]} 15. Qb5+ {[%clk 0:02:56.8]}
15... Nbc6 {[%clk 0:02:24.7]} 16. Rfc1 {[%clk 0:02:30.3]} 16... Rxc1+ {[%clk
0:02:20.7]} 17. Rxc1 {[%clk 0:02:31.2]} 17... O-O {[%clk 0:02:10.8]} 18. Bf1
{[%clk 0:02:14.3]} 18... Qd7 {[%clk 0:02:01.8]} 19. Qa4 {[%clk 0:01:59.1]} 19...
Rc8 {[%clk 0:01:58.2]} 20. Bb5 {[%clk 0:01:53.3]} 20... h6 {[%clk 0:01:40.6]}
21. h4 {[%clk 0:01:52.4]} 21... Rc7 {[%clk 0:01:22.8]} 22. Rc3 {[%clk
0:01:50.3]} 22... Qc8 {[%clk 0:01:20.6]} 23. Ba6 {[%clk 0:01:42.8]} 23... Qd8
{[%clk 0:01:14.1]} 24. Qa3 {[%clk 0:01:27.7]} 24... Na5 {[%clk 0:01:06.4]} 25.
Qd6 {[%clk 0:01:17.6]} 25... Rd7 {[%clk 0:00:57.3]} 26. Qb4 {[%clk 0:01:16.6]}
26... Rc7 {[%clk 0:00:55.6]} 27. Kf1 {[%clk 0:01:01]} 27... Rxc3 {[%clk
0:00:48.5]} 28. Qxc3 {[%clk 0:00:59.1]} 28... Qd7 {[%clk 0:00:44.9]} 29. b4
{[%clk 0:00:53.6]} 29... Nac6 {[%clk 0:00:42.1]} 30. a3 {[%clk 0:00:51]} 30...
Nb8 {[%clk 0:00:32.5]} 31. Bd3 {[%clk 0:00:50.5]} 31... Qc6 {[%clk 0:00:31]} 32.
Qxc6 {[%clk 0:00:47.4]} 32... Nbxc6 {[%clk 0:00:30.8]} 33. Ke2 {[%clk
0:00:45.8]} 33... Kf8 {[%clk 0:00:30.1]} 34. h5 {[%clk 0:00:44.7]} 34... Ke8
{[%clk 0:00:29]} 35. g4 {[%clk 0:00:45]} 35... Kf8 {[%clk 0:00:28.5]} 36. Ke3
{[%clk 0:00:45.1]} 36... a5 {[%clk 0:00:27.6]} 37. b5 {[%clk 0:00:43.9]} 37...
Nd8 {[%clk 0:00:26.4]} 38. Ng1 {[%clk 0:00:39.6]} 38... Nb7 {[%clk 0:00:22.3]}
39. Ne2 {[%clk 0:00:37.7]} 39... Nc8 {[%clk 0:00:19.8]} 40. f4 {[%clk
0:00:36.9]} 40... Ke7 {[%clk 0:00:19.9]} 41. Nc3 {[%clk 0:00:36.6]} 41... Kf8
{[%clk 0:00:20.2]} 42. f5 {[%clk 0:00:36.5]} 42... Ke7 {[%clk 0:00:20]} 43. Kf4
{[%clk 0:00:35.3]} 43... f6 {[%clk 0:00:19.4]} 44. fxe6 {[%clk 0:00:34.3]} 44...
fxe5+ {[%clk 0:00:18.4]} 45. Kxe5 {[%clk 0:00:33.7]} 45... Ncd6 {[%clk
0:00:14.1]} 46. Nxd5+ {[%clk 0:00:33.1]} 46... Ke8 {[%clk 0:00:14]} 1-0

[Event "*** Titled Tuesday Blitz"]
[Site "Chess.com"]
[Date "2021.02.02"]
[Round "1"]
[White "MikeSailer"]
[Black "KyronGriffith"]
[Result "0-1"]
[WhiteElo "2172"]
[BlackElo "2519"]
[TimeControl "180+1"]
[EndTime "10:07:13 PST"]
[Termination "KyronGriffith won by checkmate"]

1. d4 {[%clk 0:02:57.3]} 1... Nf6 {[%clk 0:02:58.8]} 2. Nf3 {[%clk 0:02:56.1]}
2... g6 {[%clk 0:02:56.8]} 3. Bf4 {[%clk 0:02:52.4]} 3... Bg7 {[%clk 0:02:55.9]}
4. e3 {[%clk 0:02:52.7]} 4... d6 {[%clk 0:02:55.9]} 5. Be2 {[%clk 0:02:53.2]}
5... O-O {[%clk 0:02:55.8]} 6. O-O {[%clk 0:02:53.4]} 6... Nfd7 {[%clk
0:02:55.7]} 7. h3 {[%clk 0:02:53.6]} 7... e5 {[%clk 0:02:55.5]} 8. Bh2 {[%clk
0:02:53.9]} 8... Nc6 {[%clk 0:02:55.6]} 9. c4 {[%clk 0:02:54.1]} 9... e4 {[%clk
0:02:55.4]} 10. Nfd2 {[%clk 0:02:53.4]} 10... f5 {[%clk 0:02:56]} 11. Nc3 {[%clk
0:02:53.7]} 11... Nf6 {[%clk 0:02:55.2]} 12. Rb1 {[%clk 0:02:51.6]} 12... Kh8
{[%clk 0:02:54.1]} 13. b4 {[%clk 0:02:51.6]} 13... Ne7 {[%clk 0:02:54.7]} 14. a4
{[%clk 0:02:47]} 14... Be6 {[%clk 0:02:51.5]} 15. Qc2 {[%clk 0:02:42.3]} 15...
Qd7 {[%clk 0:02:40.8]} 16. d5 {[%clk 0:02:41.4]} 16... Bg8 {[%clk 0:02:39.9]}
17. Nb3 {[%clk 0:02:34]} 17... Rae8 {[%clk 0:02:19.9]} 18. Nd4 {[%clk
0:02:15.4]} 18... g5 {[%clk 0:02:14.1]} 19. a5 {[%clk 0:02:01.3]} 19... Ng6
{[%clk 0:02:05.2]} 20. a6 {[%clk 0:02:00.5]} 20... bxa6 {[%clk 0:01:58.5]} 21.
Ra1 {[%clk 0:01:57.9]} 21... f4 {[%clk 0:01:49.7]} 22. exf4 {[%clk 0:01:49]}
22... gxf4 {[%clk 0:01:46.4]} 23. f3 {[%clk 0:01:49.2]} 23... Nxd5 {[%clk
0:01:41.8]} 24. Nxd5 {[%clk 0:01:40.5]} 24... Bxd4+ {[%clk 0:01:42.1]} 25. Kh1
{[%clk 0:01:40.9]} 25... e3 {[%clk 0:01:33.4]} 26. Rxa6 {[%clk 0:01:39]} 26...
c6 {[%clk 0:01:14.5]} 27. Nc3 {[%clk 0:01:32.6]} 27... Qb7 {[%clk 0:01:11.1]}
28. b5 {[%clk 0:01:28.7]} 28... cxb5 {[%clk 0:01:06.7]} 29. cxb5 {[%clk
0:01:28.7]} 29... Rc8 {[%clk 0:01:05.3]} 30. Rc6 {[%clk 0:01:18.1]} 30... Rxc6
{[%clk 0:01:03.8]} 31. bxc6 {[%clk 0:01:16.3]} 31... Qxc6 {[%clk 0:01:04.7]} 32.
Rc1 {[%clk 0:01:09.7]} 32... Rc8 {[%clk 0:01:00.3]} 33. Qf5 {[%clk 0:00:43.8]}
33... Bxc3 {[%clk 0:00:55.1]} 34. Bxf4 {[%clk 0:00:43.8]} 34... Rf8 {[%clk
0:00:50.3]} 35. Qg5 {[%clk 0:00:37.1]} 35... Rxf4 {[%clk 0:00:45.5]} 36. Bd3
{[%clk 0:00:37.1]} 36... Qc5 {[%clk 0:00:33.4]} 37. Qd8 {[%clk 0:00:21.8]} 37...
Rf8 {[%clk 0:00:27.2]} 38. Qd7 {[%clk 0:00:20.6]} 38... Qe5 {[%clk 0:00:17]} 39.
Be4 {[%clk 0:00:15.9]} 39... Bd2 {[%clk 0:00:14.6]} 40. Rc7 {[%clk 0:00:14.7]}
40... Rf7 {[%clk 0:00:15.2]} 41. Qd8 {[%clk 0:00:12.1]} 41... Rxc7 {[%clk
0:00:15.3]} 42. Qxc7 {[%clk 0:00:12.9]} 42... e2 {[%clk 0:00:15.6]} 43. Bxg6
{[%clk 0:00:09.6]} 43... e1=Q# {[%clk 0:00:15.6]} 0-1

[Event "*** Titled Tuesday Blitz"]
[Site "Chess.com"]
[Date "2021.02.02"]
[Round "1"]
[White "VladaSviridova"]
[Black "Chernobay_Artem"]
[Result "0-1"]
[WhiteElo "2274"]
[BlackElo "2579"]
[TimeControl "180+1"]
[EndTime "10:07:15 PST"]
[Termination "Chernobay_Artem won by resignation"]

1. d4 {[%clk 0:03:00.9]} 1... Nf6 {[%clk 0:02:59]} 2. c4 {[%clk 0:03:01]} 2...
g6 {[%clk 0:02:55.5]} 3. Nc3 {[%clk 0:03:00.4]} 3... Bg7 {[%clk 0:02:56]} 4. e4
{[%clk 0:03:00.4]} 4... d6 {[%clk 0:02:56]} 5. Nf3 {[%clk 0:03:01]} 5... O-O
{[%clk 0:02:55.3]} 6. Be2 {[%clk 0:03:01.6]} 6... e5 {[%clk 0:02:55.7]} 7. O-O
{[%clk 0:03:00.9]} 7... Nc6 {[%clk 0:02:55.8]} 8. d5 {[%clk 0:03:01.3]} 8... Ne7
{[%clk 0:02:55]} 9. Ne1 {[%clk 0:03:01.8]} 9... Nd7 {[%clk 0:02:54.3]} 10. Be3
{[%clk 0:03:01.9]} 10... f5 {[%clk 0:02:54]} 11. f3 {[%clk 0:03:02.5]} 11... f4
{[%clk 0:02:54.4]} 12. Bf2 {[%clk 0:03:02.8]} 12... g5 {[%clk 0:02:54.8]} 13.
Nd3 {[%clk 0:03:03.1]} 13... Nf6 {[%clk 0:02:46.5]} 14. c5 {[%clk 0:03:02.8]}
14... Ng6 {[%clk 0:02:45.4]} 15. Rc1 {[%clk 0:03:02.5]} 15... Rf7 {[%clk
0:02:44.2]} 16. Kh1 {[%clk 0:03:02.3]} 16... h5 {[%clk 0:02:36.7]} 17. Nb5
{[%clk 0:03:01.5]} 17... g4 {[%clk 0:02:12.5]} 18. cxd6 {[%clk 0:02:58.8]} 18...
cxd6 {[%clk 0:02:11.6]} 19. Nxa7 {[%clk 0:02:57.9]} 19... Bd7 {[%clk 0:02:11]}
20. Qb3 {[%clk 0:02:56.7]} 20... g3 {[%clk 0:02:06.2]} 21. Bg1 {[%clk
0:02:56.8]} 21... Nh4 {[%clk 0:01:48.6]} 22. Ne1 {[%clk 0:02:15.3]} 22... Bf8
{[%clk 0:01:35.4]} 23. Qxb7 {[%clk 0:01:56.8]} 23... Rg7 {[%clk 0:01:18.8]} 24.
Qb6 {[%clk 0:01:43.5]} 24... Qe8 {[%clk 0:01:16.3]} 25. Rc7 {[%clk 0:01:04.7]}
25... Rb8 {[%clk 0:01:15.7]} 26. Rb7 {[%clk 0:00:50.9]} 26... Rxb7 {[%clk
0:01:15.6]} 27. Qxb7 {[%clk 0:00:51.8]} 27... gxh2 {[%clk 0:01:13.1]} 28. Bxh2
{[%clk 0:00:50.1]} 28... Nxg2 {[%clk 0:01:04.6]} 29. Qb6 {[%clk 0:00:31]} 29...
Bh3 {[%clk 0:00:55.8]} 30. Rg1 {[%clk 0:00:30.1]} 30... Nxe1 {[%clk 0:00:53.3]}
31. Rxg7+ {[%clk 0:00:26.5]} 31... Kxg7 {[%clk 0:00:51.1]} 32. Kg1 {[%clk
0:00:18.1]} 32... Qg6+ {[%clk 0:00:45.9]} 33. Kf2 {[%clk 0:00:18.1]} 33... Nc2
{[%clk 0:00:45.1]} 34. Qc7+ {[%clk 0:00:17.2]} 34... Kh6 {[%clk 0:00:42.2]} 35.
Qxc2 {[%clk 0:00:16.8]} 35... Qg2+ {[%clk 0:00:41.9]} 36. Ke1 {[%clk 0:00:17.4]}
36... Qxh2 {[%clk 0:00:41.8]} 37. Qc7 {[%clk 0:00:16.1]} 37... Qg1+ {[%clk
0:00:35.6]} 38. Kd2 {[%clk 0:00:16.1]} 38... Qe3+ {[%clk 0:00:35.6]} 39. Kd1
{[%clk 0:00:16.1]} 39... Bg2 {[%clk 0:00:33.7]} 40. Qd8 {[%clk 0:00:15.8]} 40...
Bg7 {[%clk 0:00:32.5]} 41. Qe7 {[%clk 0:00:15.7]} 41... Bxf3 {[%clk 0:00:30.6]}
42. Bxf3 {[%clk 0:00:15.3]} 42... Qxf3+ {[%clk 0:00:30.5]} 43. Kc1 {[%clk
0:00:15.7]} 43... Qe3+ {[%clk 0:00:30.3]} 44. Kc2 {[%clk 0:00:14.8]} 44... Qxe4+
{[%clk 0:00:30.2]} 45. Kc3 {[%clk 0:00:14.6]} 45... Nxd5+ {[%clk 0:00:28.1]} 0-1

[Event "*** Titled Tuesday Blitz"]
[Site "Chess.com"]
[Date "2021.02.02"]
[Round "1"]
[White "GMaka"]
[Black "Reader777"]
[Result "0-1"]
[WhiteElo "2411"]
[BlackElo "2796"]
[TimeControl "180+1"]
[EndTime "10:07:16 PST"]
[Termination "Reader777 won by resignation"]

1. d4 {[%clk 0:03:00.6]} 1... Nf6 {[%clk 0:02:59.6]} 2. c4 {[%clk 0:02:59.8]}
2... e6 {[%clk 0:02:59.5]} 3. Nc3 {[%clk 0:03:00]} 3... Bb4 {[%clk 0:02:59.3]}
4. e3 {[%clk 0:03:00.5]} 4... O-O {[%clk 0:02:58]} 5. Ne2 {[%clk 0:03:00.4]}
5... d5 {[%clk 0:02:57.9]} 6. a3 {[%clk 0:03:00.2]} 6... Be7 {[%clk 0:02:57.6]}
7. cxd5 {[%clk 0:03:00.7]} 7... exd5 {[%clk 0:02:57.7]} 8. g3 {[%clk 0:02:59.6]}
8... a5 {[%clk 0:02:57.1]} 9. Bg2 {[%clk 0:02:58.8]} 9... Na6 {[%clk 0:02:54.6]}
10. O-O {[%clk 0:02:57.9]} 10... Re8 {[%clk 0:02:51.9]} 11. f3 {[%clk
0:02:57.4]} 11... c5 {[%clk 0:02:51.3]} 12. dxc5 {[%clk 0:02:57.7]} 12... Bxc5
{[%clk 0:02:48.8]} 13. Nd4 {[%clk 0:02:56.2]} 13... Nc7 {[%clk 0:02:48.8]} 14.
Rb1 {[%clk 0:02:51.7]} 14... Ne6 {[%clk 0:02:45]} 15. b4 {[%clk 0:02:50]} 15...
axb4 {[%clk 0:02:44.6]} 16. axb4 {[%clk 0:02:50.9]} 16... Bb6 {[%clk 0:02:44.5]}
17. Ncb5 {[%clk 0:02:33.1]} 17... Bd7 {[%clk 0:02:31.1]} 18. Nd6 {[%clk
0:02:32.4]} 18... Rf8 {[%clk 0:02:18.5]} 19. Qd3 {[%clk 0:02:13.6]} 19... Nxd4
{[%clk 0:02:15.1]} 20. exd4 {[%clk 0:02:14.5]} 20... Qb8 {[%clk 0:02:07.7]} 21.
Bf4 {[%clk 0:02:13.3]} 21... Bc7 {[%clk 0:02:07.7]} 22. Nf5 {[%clk 0:01:42.6]}
22... Bxf4 {[%clk 0:02:07.3]} 23. gxf4 {[%clk 0:01:43.5]} 23... Qxf4 {[%clk
0:02:07.7]} 24. Ng3 {[%clk 0:01:43.8]} 24... Rfe8 {[%clk 0:02:05.5]} 25. Rfe1
{[%clk 0:01:39.1]} 25... h5 {[%clk 0:02:03.1]} 26. b5 {[%clk 0:01:25]} 26... h4
{[%clk 0:02:00.1]} 27. Ne2 {[%clk 0:01:22.9]} 27... Qg5 {[%clk 0:02:00]} 28. f4
{[%clk 0:01:18.6]} 28... Qf5 {[%clk 0:01:58.1]} 29. Qxf5 {[%clk 0:01:16.8]}
29... Bxf5 {[%clk 0:01:58.4]} 30. Rbc1 {[%clk 0:01:17.1]} 30... Ne4 {[%clk
0:01:39]} 31. Nc3 {[%clk 0:01:13.7]} 31... Rad8 {[%clk 0:01:21.3]} 32. Re3
{[%clk 0:01:07.3]} 32... Nxc3 {[%clk 0:00:57.2]} 33. Rxe8+ {[%clk 0:01:05.5]}
33... Rxe8 {[%clk 0:00:58.1]} 34. Rxc3 {[%clk 0:01:06]} 34... Re1+ {[%clk
0:00:49.7]} 35. Kf2 {[%clk 0:01:05.6]} 35... Rb1 {[%clk 0:00:49.5]} 36. Bf1
{[%clk 0:01:04.6]} 36... Rb2+ {[%clk 0:00:47.1]} 37. Kg1 {[%clk 0:01:04.1]}
37... Rb4 {[%clk 0:00:35.5]} 38. Rc7 {[%clk 0:01:03.1]} 38... Rxd4 {[%clk
0:00:34.4]} 39. Rxb7 {[%clk 0:01:02]} 39... Rxf4 {[%clk 0:00:34.5]} 40. b6
{[%clk 0:01:02.4]} 40... Rb4 {[%clk 0:00:33.6]} 41. Rb8+ {[%clk 0:01:00.6]}
41... Kh7 {[%clk 0:00:33.7]} 42. b7 {[%clk 0:00:59.8]} 42... d4 {[%clk 0:00:33]}
43. Ba6 {[%clk 0:00:58.8]} 43... Be4 {[%clk 0:00:31.7]} 44. Rd8 {[%clk
0:00:42.8]} 44... Bxb7 {[%clk 0:00:30.5]} 45. Rb8 {[%clk 0:00:43.2]} 45... Rb1+
{[%clk 0:00:29.1]} 46. Kf2 {[%clk 0:00:43.6]} 46... Be4 {[%clk 0:00:27.9]} 47.
Rxb1 {[%clk 0:00:39.3]} 47... Bxb1 {[%clk 0:00:28.8]} 48. Kf3 {[%clk 0:00:37.9]}
48... f5 {[%clk 0:00:28.2]} 49. Kf4 {[%clk 0:00:38.3]} 49... Kg6 {[%clk
0:00:26.8]} 50. Ke5 {[%clk 0:00:38.5]} 50... d3 {[%clk 0:00:26.7]} 51. Kd4
{[%clk 0:00:36.9]} 51... d2 {[%clk 0:00:26.9]} 52. Be2 {[%clk 0:00:36.1]} 0-1

[Event "*** Titled Tuesday Blitz"]
[Site "Chess.com"]
[Date "2021.02.02"]
[Round "1"]
[White "tdf98pantani"]
[Black "Kaua18"]
[Result "1-0"]
[WhiteElo "2754"]
[BlackElo "2396"]
[TimeControl "180+1"]
[EndTime "10:07:16 PST"]
[Termination "tdf98pantani won on time"]

1. c4 {[%clk 0:03:00]} 1... c5 {[%clk 0:02:59.1]} 2. Nf3 {[%clk 0:02:59.4]} 2...
Nc6 {[%clk 0:02:59.4]} 3. Nc3 {[%clk 0:02:58.4]} 3... e5 {[%clk 0:02:59.7]} 4.
g3 {[%clk 0:02:56]} 4... g6 {[%clk 0:02:58.9]} 5. Bg2 {[%clk 0:02:56]} 5... Bg7
{[%clk 0:02:59.1]} 6. O-O {[%clk 0:02:54.8]} 6... Nge7 {[%clk 0:02:58.3]} 7. d3
{[%clk 0:02:55]} 7... d6 {[%clk 0:02:57.1]} 8. Bg5 {[%clk 0:02:54.2]} 8... f6
{[%clk 0:02:57]} 9. Bd2 {[%clk 0:02:53.9]} 9... O-O {[%clk 0:02:57.4]} 10. Ne1
{[%clk 0:02:53.5]} 10... Be6 {[%clk 0:02:57.6]} 11. Nc2 {[%clk 0:02:53.2]} 11...
d5 {[%clk 0:02:58]} 12. cxd5 {[%clk 0:02:51.2]} 12... Nxd5 {[%clk 0:02:58.9]}
13. Nxd5 {[%clk 0:02:47.9]} 13... Bxd5 {[%clk 0:02:58.6]} 14. b4 {[%clk
0:02:47.1]} 14... Bxg2 {[%clk 0:02:56.5]} 15. Kxg2 {[%clk 0:02:47.5]} 15... Qd5+
{[%clk 0:02:46.2]} 16. Kg1 {[%clk 0:02:39]} 16... cxb4 {[%clk 0:02:46.1]} 17.
Nxb4 {[%clk 0:02:38.7]} 17... Nxb4 {[%clk 0:02:47]} 18. Bxb4 {[%clk 0:02:39.3]}
18... Rfd8 {[%clk 0:02:44.9]} 19. Qb3 {[%clk 0:02:31.8]} 19... Rac8 {[%clk
0:02:40]} 20. Rfc1 {[%clk 0:02:30.5]} 20... Qxb3 {[%clk 0:02:18.8]} 21. axb3
{[%clk 0:02:30.1]} 21... Rxc1+ {[%clk 0:02:07.3]} 22. Rxc1 {[%clk 0:02:29.6]}
22... Rd7 {[%clk 0:02:01.8]} 23. Kg2 {[%clk 0:02:10.2]} 23... Kf7 {[%clk
0:01:58.3]} 24. Rc8 {[%clk 0:02:08.2]} 24... h5 {[%clk 0:01:54.7]} 25. h3 {[%clk
0:02:06.8]} 25... f5 {[%clk 0:01:40.4]} 26. Bc5 {[%clk 0:02:00.6]} 26... a6
{[%clk 0:01:27.3]} 27. h4 {[%clk 0:01:53.5]} 27... Bf6 {[%clk 0:01:17]} 28. Kf3
{[%clk 0:01:42.8]} 28... Be7 {[%clk 0:01:14.9]} 29. Bxe7 {[%clk 0:01:30.6]}
29... Kxe7 {[%clk 0:01:12.1]} 30. Rg8 {[%clk 0:01:26.5]} 30... Kf7 {[%clk
0:01:09.4]} 31. Rb8 {[%clk 0:01:25.3]} 31... Ke6 {[%clk 0:01:05.6]} 32. Ke3
{[%clk 0:01:25]} 32... Kd5 {[%clk 0:01:00.1]} 33. Rg8 {[%clk 0:01:22.2]} 33...
Rd6 {[%clk 0:01:00.1]} 34. Rg7 {[%clk 0:01:21]} 34... Rb6 {[%clk 0:00:55.9]} 35.
f4 {[%clk 0:01:20]} 35... e4 {[%clk 0:00:22.9]} 36. b4 {[%clk 0:00:55.4]} 36...
exd3 {[%clk 0:00:21.7]} 37. exd3 {[%clk 0:00:54.8]} 37... Rxb4 {[%clk
0:00:11.5]} 38. Rxg6 {[%clk 0:00:55.2]} 38... a5 {[%clk 0:00:09.6]} 39. Rf6
{[%clk 0:00:55.4]} 39... b5 {[%clk 0:00:09.6]} 40. Rxf5+ {[%clk 0:00:55.6]}
40... Ke6 {[%clk 0:00:10]} 41. Rxh5 {[%clk 0:00:52.6]} 41... a4 {[%clk
0:00:10.5]} 42. Rh6+ {[%clk 0:00:52.6]} 42... Kf5 {[%clk 0:00:10.1]} 43. Ra6
{[%clk 0:00:49.7]} 43... Kg4 {[%clk 0:00:10.4]} 44. h5 {[%clk 0:00:48.1]} 44...
Kxh5 {[%clk 0:00:10.3]} 45. Kf3 {[%clk 0:00:48.8]} 1-0

[Event "*** Titled Tuesday Blitz"]
[Site "Chess.com"]
[Date "2021.02.02"]
[Round "1"]
[White "Flawless_Fighter"]
[Black "drragnar1"]
[Result "1/2-1/2"]
[WhiteElo "2688"]
[BlackElo "2382"]
[TimeControl "180+1"]
[EndTime "10:07:16 PST"]
[Termination "Game drawn by repetition"]

1. d4 {[%clk 0:02:58.4]} 1... Nf6 {[%clk 0:02:56]} 2. Nc3 {[%clk 0:02:55.1]}
2... c5 {[%clk 0:02:56.2]} 3. d5 {[%clk 0:02:55]} 3... e5 {[%clk 0:02:56.2]} 4.
e4 {[%clk 0:02:54.3]} 4... d6 {[%clk 0:02:56.5]} 5. g3 {[%clk 0:02:50.4]} 5...
Be7 {[%clk 0:02:56.5]} 6. Bg2 {[%clk 0:02:51]} 6... O-O {[%clk 0:02:57]} 7. Nf3
{[%clk 0:02:50.2]} 7... Ne8 {[%clk 0:02:56.7]} 8. O-O {[%clk 0:02:49.7]} 8... g6
{[%clk 0:02:57]} 9. a4 {[%clk 0:02:44.1]} 9... Ng7 {[%clk 0:02:57.1]} 10. Bh6
{[%clk 0:02:40.6]} 10... f5 {[%clk 0:02:55.8]} 11. exf5 {[%clk 0:02:38.1]} 11...
Bxf5 {[%clk 0:02:51.8]} 12. Nd2 {[%clk 0:02:36.5]} 12... Bg5 {[%clk 0:02:44.6]}
13. Bxg5 {[%clk 0:02:33.1]} 13... Qxg5 {[%clk 0:02:45.5]} 14. Nc4 {[%clk
0:02:28.1]} 14... Ne8 {[%clk 0:02:40.1]} 15. Ne4 {[%clk 0:02:04.1]} 15... Qe7
{[%clk 0:02:22.4]} 16. Qe2 {[%clk 0:02:00.8]} 16... Nd7 {[%clk 0:02:19.7]} 17.
Rad1 {[%clk 0:01:57.3]} 17... Bxe4 {[%clk 0:02:16.7]} 18. Bxe4 {[%clk
0:01:53.4]} 18... Nb6 {[%clk 0:02:13.2]} 19. Nxb6 {[%clk 0:01:38.6]} 19... axb6
{[%clk 0:02:14.1]} 20. b3 {[%clk 0:01:39.3]} 20... Ng7 {[%clk 0:02:02.7]} 21.
Qb5 {[%clk 0:01:33.8]} 21... Qc7 {[%clk 0:01:58.2]} 22. Bg2 {[%clk 0:01:30.2]}
22... Nf5 {[%clk 0:01:50.9]} 23. Qc4 {[%clk 0:01:28]} 23... Nd4 {[%clk
0:01:45.6]} 24. c3 {[%clk 0:01:25.7]} 24... Nf3+ {[%clk 0:01:44.8]} 25. Bxf3
{[%clk 0:01:21.1]} 25... Rxf3 {[%clk 0:01:45.7]} 26. Kg2 {[%clk 0:01:19.8]}
26... Raf8 {[%clk 0:01:45]} 27. Rd3 {[%clk 0:01:17.9]} 27... Qf7 {[%clk
0:01:41.9]} 28. Rxf3 {[%clk 0:01:10.5]} 28... Qxf3+ {[%clk 0:01:42.8]} 29. Kg1
{[%clk 0:01:11.3]} 29... e4 {[%clk 0:01:38]} 30. b4 {[%clk 0:00:46.2]} 30... h5
{[%clk 0:01:30.8]} 31. Qb5 {[%clk 0:00:38.2]} 31... e3 {[%clk 0:01:01.5]} 32.
fxe3 {[%clk 0:00:38.1]} 32... Qxe3+ {[%clk 0:01:01.8]} 33. Kg2 {[%clk
0:00:38.6]} 33... Qe4+ {[%clk 0:00:58.7]} 34. Kg1 {[%clk 0:00:37.8]} 34... Rxf1+
{[%clk 0:00:56.2]} 35. Kxf1 {[%clk 0:00:26.2]} 35... Qxd5 {[%clk 0:00:54]} 36.
Qxb6 {[%clk 0:00:21.4]} 36... Qf3+ {[%clk 0:00:45.7]} 37. Kg1 {[%clk 0:00:20.6]}
37... Qxc3 {[%clk 0:00:46.2]} 38. Qd8+ {[%clk 0:00:18.3]} 38... Kg7 {[%clk
0:00:45.9]} 39. Qe7+ {[%clk 0:00:18.2]} 39... Kh6 {[%clk 0:00:44.7]} 40. Qf8+
{[%clk 0:00:17.5]} 40... Kh7 {[%clk 0:00:43.3]} 41. Qe7+ {[%clk 0:00:16.4]}
41... Kh6 {[%clk 0:00:31.7]} 42. Qf8+ {[%clk 0:00:15.2]} 42... Kh7 {[%clk
0:00:31.5]} 43. Qe7+ {[%clk 0:00:15.4]} 43... Kh6 {[%clk 0:00:29.9]} 1/2-1/2

[Event "*** Titled Tuesday Blitz"]
[Site "Chess.com"]
[Date "2021.02.02"]
[Round "1"]
[White "BulletMercenary"]
[Black "tsvet2005"]
[Result "0-1"]
[WhiteElo "2367"]
[BlackElo "2685"]
[TimeControl "180+1"]
[EndTime "10:07:16 PST"]
[Termination "tsvet2005 won by resignation"]

1. e4 {[%clk 0:02:59.7]} 1... c5 {[%clk 0:03:00]} 2. d4 {[%clk 0:02:59.8]} 2...
cxd4 {[%clk 0:03:00.9]} 3. c3 {[%clk 0:03:00.5]} 3... dxc3 {[%clk 0:03:01.6]} 4.
Nxc3 {[%clk 0:03:01.4]} 4... Nc6 {[%clk 0:03:02.3]} 5. Nf3 {[%clk 0:03:02.3]}
5... e6 {[%clk 0:03:02.8]} 6. Bc4 {[%clk 0:03:03]} 6... a6 {[%clk 0:03:03.3]} 7.
Qe2 {[%clk 0:03:03.6]} 7... Nge7 {[%clk 0:03:03.2]} 8. O-O {[%clk 0:03:02.4]}
8... Ng6 {[%clk 0:03:03.2]} 9. e5 {[%clk 0:03:02.3]} 9... d5 {[%clk 0:03:01.2]}
10. exd6 {[%clk 0:02:57.8]} 10... Bxd6 {[%clk 0:03:01.1]} 11. Rd1 {[%clk
0:02:58.3]} 11... Qe7 {[%clk 0:02:46]} 12. Ne4 {[%clk 0:02:45.4]} 12... Bc7
{[%clk 0:02:45.2]} 13. Bg5 {[%clk 0:02:43.2]} 13... f6 {[%clk 0:02:44.5]} 14.
Be3 {[%clk 0:02:43.3]} 14... b6 {[%clk 0:02:41.8]} 15. Rac1 {[%clk 0:02:27.1]}
15... Nce5 {[%clk 0:02:32.1]} 16. Bb3 {[%clk 0:01:06.3]} 16... O-O {[%clk
0:02:26]} 17. Nd4 {[%clk 0:01:05.6]} 17... Kh8 {[%clk 0:02:18.1]} 18. f4 {[%clk
0:01:00.3]} 18... Nf7 {[%clk 0:02:07.4]} 19. Nxe6 {[%clk 0:00:59.1]} 19... Bxe6
{[%clk 0:02:04.5]} 20. Bxe6 {[%clk 0:00:57]} 20... Bxf4 {[%clk 0:01:55.4]} 21.
Bd5 {[%clk 0:00:50.1]} 21... Rad8 {[%clk 0:01:51.7]} 22. Bxb6 {[%clk 0:00:48.1]}
22... Bxc1 {[%clk 0:01:44.4]} 23. Bxd8 {[%clk 0:00:44.3]} 23... Rxd8 {[%clk
0:01:45.3]} 24. Bxf7 {[%clk 0:00:42.9]} 24... Be3+ {[%clk 0:01:42.6]} 25. Kf1
{[%clk 0:00:33.8]} 25... Rxd1+ {[%clk 0:01:37.8]} 26. Qxd1 {[%clk 0:00:34.5]}
26... Qxf7 {[%clk 0:01:38.1]} 27. Nd6 {[%clk 0:00:22.3]} 27... Qe6 {[%clk
0:01:26.6]} 28. Qd3 {[%clk 0:00:22.2]} 28... Ne5 {[%clk 0:01:22.4]} 29. Qxa6
{[%clk 0:00:21.7]} 29... g6 {[%clk 0:00:37]} 30. Qc8+ {[%clk 0:00:21.7]} 30...
Qxc8 {[%clk 0:00:35.8]} 31. Nxc8 {[%clk 0:00:22.6]} 31... Kg7 {[%clk 0:00:35.7]}
32. Ke2 {[%clk 0:00:22.9]} 32... Bd4 {[%clk 0:00:34.9]} 33. b3 {[%clk
0:00:20.6]} 33... Kf7 {[%clk 0:00:35]} 34. Nd6+ {[%clk 0:00:20.6]} 34... Ke6
{[%clk 0:00:35.5]} 35. Nb5 {[%clk 0:00:21.5]} 35... Kd5 {[%clk 0:00:35.8]} 36.
Na3 {[%clk 0:00:19.2]} 36... Bc5 {[%clk 0:00:34.1]} 37. Nc2 {[%clk 0:00:19.1]}
37... Nc6 {[%clk 0:00:34.6]} 38. Ne1 {[%clk 0:00:12.7]} 38... Nd4+ {[%clk
0:00:34.6]} 39. Kd3 {[%clk 0:00:12.8]} 39... Bb4 {[%clk 0:00:34.9]} 40. Nc2
{[%clk 0:00:06.8]} 40... Nxc2 {[%clk 0:00:34.5]} 41. Kxc2 {[%clk 0:00:07.7]}
41... Kd4 {[%clk 0:00:34.4]} 42. Kb2 {[%clk 0:00:07.8]} 42... f5 {[%clk
0:00:33]} 43. a3 {[%clk 0:00:07.9]} 43... Bc3+ {[%clk 0:00:33.3]} 44. Kc2 {[%clk
0:00:07.7]} 44... f4 {[%clk 0:00:34.2]} 45. b4 {[%clk 0:00:06.4]} 45... g5
{[%clk 0:00:34.1]} 0-1